[Event "Titled Tuesday Blitz February 07 Late 2023"]
[White "Tyagi, Kushan"]
[Black "Sabar, Ethmane Daouda"]
[WhiteFideId "2040069"]
[BlackFideId "19600097"]
[WhiteElo "2060"]
[BlackElo "2040"]
[Result "0-1"]
[Round "10"]
[TimeControl "180+2"]
[Date "2023.02.07"]
[WhiteClock "0:01:54"]
[BlackClock "0:01:05"]

1. d4 {[%clk 0:03:00]}  d5 {[%clk 0:02:59]} 2. c4 {[%clk 0:03:00]}  e5 {[%clk 0:02:58]} 3. dxe5 {[%clk 0:02:56]}  d4 {[%clk 0:02:59]} 4. Nf3 {[%clk 0:02:56]}  Nc6 {[%clk 0:03:00]} 5. a3 {[%clk 0:02:55]}  Bg4 {[%clk 0:03:00]} 6. Nbd2 {[%clk 0:02:52]}  Qe7 {[%clk 0:03:00]} 7. b4 {[%clk 0:02:45]}  O-O-O {[%clk 0:03:00]} 8. Bb2 {[%clk 0:02:45]}  Nxe5 {[%clk 0:02:53]} 9. Nxe5 {[%clk 0:02:43]}  Qxe5 {[%clk 0:02:53]} 10. h3 {[%clk 0:02:43]}  Bh5 {[%clk 0:02:53]} 11. g4 {[%clk 0:02:43]}  Bg6 {[%clk 0:02:51]} 12. Nf3 {[%clk 0:02:43]}  Qe4 {[%clk 0:02:51]} 13. Bg2 {[%clk 0:02:36]}  d3 {[%clk 0:02:49]} 14. e3 {[%clk 0:02:28]}  d2+ {[%clk 0:02:47]} 15. Kf1 {[%clk 0:02:26]}  Qxc4+ {[%clk 0:02:43]} 16. Kg1 {[%clk 0:02:20]}  Bc2 {[%clk 0:02:32]} 17. Ne5 {[%clk 0:02:20]}  Qb3 {[%clk 0:02:16]} 18. Qf3 {[%clk 0:02:19]}  d1=Q+ {[%clk 0:01:31]} 19. Rxd1 {[%clk 0:02:14]}  Rxd1+ {[%clk 0:01:32]} 20. Kh2 {[%clk 0:02:12]}  Rxh1+ {[%clk 0:01:30]} 21. Bxh1 {[%clk 0:02:11]}  c6 {[%clk 0:01:21]} 22. Nxc6 {[%clk 0:02:06]}  Bd6+ {[%clk 0:01:20]} 23. Kg1 {[%clk 0:02:05]}  Qxb2 {[%clk 0:01:10]} 24. Nxa7+ {[%clk 0:02:04]}  Kd8 {[%clk 0:01:08]} 25. Qxb7 {[%clk 0:01:57]}  Qb1+ {[%clk 0:01:05]} 26. Kg2 {[%clk 0:01:54]}  Be4+ {[%clk 0:01:05]} 0-1


[Site "https://www.chess.com"]

[Event "Titled Tuesday Blitz February 07 Late 2023"]
[White "Souza, Gustavo Horokoski De"]
[Black "Gonzalez, Francisco Silva"]
[WhiteFideId "2146584"]
[BlackFideId "1512285"]
[WhiteElo "1943"]
[BlackElo "2021"]
[Result "1-0"]
[Round "10"]
[TimeControl "180+2"]
[Date "2023.02.07"]
[WhiteClock "0:00:11"]
[BlackClock "0:01:06"]

1. d4 {[%clk 0:02:57]}  Nf6 {[%clk 0:02:48]} 2. c4 {[%clk 0:02:56]}  e6 {[%clk 0:02:48]} 3. Nc3 {[%clk 0:02:52]}  Bb4 {[%clk 0:02:48]} 4. e3 {[%clk 0:02:49]}  O-O {[%clk 0:02:48]} 5. Ne2 {[%clk 0:02:47]}  d5 {[%clk 0:02:48]} 6. a3 {[%clk 0:02:44]}  Bd6 {[%clk 0:02:48]} 7. c5 {[%clk 0:02:34]}  Be7 {[%clk 0:02:48]} 8. b4 {[%clk 0:02:34]}  c6 {[%clk 0:02:49]} 9. a4 {[%clk 0:02:31]}  b6 {[%clk 0:02:45]} 10. Ng3 {[%clk 0:02:27]}  a5 {[%clk 0:02:45]} 11. b5 {[%clk 0:02:22]}  bxc5 {[%clk 0:02:45]} 12. dxc5 {[%clk 0:02:21]}  Bxc5 {[%clk 0:02:44]} 13. Bb2 {[%clk 0:02:17]}  Bb4 {[%clk 0:02:44]} 14. Bd3 {[%clk 0:02:11]}  cxb5 {[%clk 0:02:41]} 15. Bxb5 {[%clk 0:02:10]}  Qc7 {[%clk 0:02:39]} 16. Rc1 {[%clk 0:02:07]}  Ba6 {[%clk 0:02:28]} 17. O-O {[%clk 0:02:04]}  Qe7 {[%clk 0:02:25]} 18. e4 {[%clk 0:01:55]}  Bxc3 {[%clk 0:02:21]} 19. Bxc3 {[%clk 0:01:54]}  Bxb5 {[%clk 0:02:21]} 20. axb5 {[%clk 0:01:53]}  Nxe4 {[%clk 0:02:20]} 21. Nxe4 {[%clk 0:01:50]}  dxe4 {[%clk 0:02:20]} 22. Qd4 {[%clk 0:01:49]}  f5 {[%clk 0:02:19]} 23. Ra1 {[%clk 0:01:44]}  Nd7 {[%clk 0:02:15]} 24. Rxa5 {[%clk 0:01:41]}  Rxa5 {[%clk 0:02:13]} 25. Bxa5 {[%clk 0:01:42]}  Rb8 {[%clk 0:02:03]} 26. Rd1 {[%clk 0:01:34]}  Nf6 {[%clk 0:02:02]} 27. Rb1 {[%clk 0:01:28]}  Nd5 {[%clk 0:01:56]} 28. Bc3 {[%clk 0:01:16]}  Rc8 {[%clk 0:01:52]} 29. Ba1 {[%clk 0:01:13]}  Qb7 {[%clk 0:01:39]} 30. h3 {[%clk 0:01:07]}  Nf4 {[%clk 0:01:38]} 31. Kh2 {[%clk 0:00:40]}  Rc2 {[%clk 0:01:29]} 32. Rd1 {[%clk 0:00:20]}  Nxg2 {[%clk 0:01:17]} 33. Qd8+ {[%clk 0:00:13]}  Kf7 {[%clk 0:01:14]} 34. Rd7+ {[%clk 0:00:13]}  Qxd7 {[%clk 0:01:07]} 35. Qxd7+ {[%clk 0:00:14]}  Kf8 {[%clk 0:01:08]} 36. Qxg7+ {[%clk 0:00:14]}  Ke8 {[%clk 0:01:07]} 37. Kxg2 {[%clk 0:00:13]}  e3 {[%clk 0:01:07]} 38. Qh8+ {[%clk 0:00:12]}  Kd7 {[%clk 0:01:07]} 39. Qd4+ {[%clk 0:00:12]}  Ke8 {[%clk 0:01:06]} 40. Qxe3 {[%clk 0:00:11]}  Ra2 {[%clk 0:01:06]} 41. Qxe6+ {[%clk 0:00:11]} 1-0


[Site "https://www.chess.com"]

[Event "Titled Tuesday Blitz February 07 Late 2023"]
[White "Jeziel_Vale"]
[Black "Manu_ChessExcelsior"]
[WhiteElo "2276"]
[BlackElo "1881"]
[Result "1-0"]
[Round "10"]
[TimeControl "180+2"]
[Date "2023.02.07"]
[WhiteClock "0:00:11"]
[BlackClock "0:00:02"]

1. d4 {[%clk 0:03:00]}  d5 {[%clk 0:02:59]} 2. c4 {[%clk 0:03:00]}  e6 {[%clk 0:02:59]} 3. Nf3 {[%clk 0:03:00]}  Nf6 {[%clk 0:02:58]} 4. g3 {[%clk 0:03:00]}  Be7 {[%clk 0:02:57]} 5. Bg2 {[%clk 0:03:00]}  O-O {[%clk 0:02:58]} 6. O-O {[%clk 0:03:00]}  c6 {[%clk 0:02:58]} 7. Qc2 {[%clk 0:03:00]}  b6 {[%clk 0:02:59]} 8. Nbd2 {[%clk 0:03:00]}  Bb7 {[%clk 0:02:59]} 9. e4 {[%clk 0:02:57]}  dxe4 {[%clk 0:02:57]} 10. Nxe4 {[%clk 0:02:58]}  Nbd7 {[%clk 0:02:56]} 11. Rd1 {[%clk 0:02:54]}  Rc8 {[%clk 0:02:49]} 12. Nxf6+ {[%clk 0:02:47]}  Nxf6 {[%clk 0:02:44]} 13. Ne5 {[%clk 0:02:46]}  Qc7 {[%clk 0:02:17]} 14. Bf4 {[%clk 0:02:45]}  Bd6 {[%clk 0:02:17]} 15. Qe2 {[%clk 0:02:44]}  Nd7 {[%clk 0:02:06]} 16. Nxd7 {[%clk 0:02:05]}  Qxd7 {[%clk 0:02:07]} 17. Be5 {[%clk 0:02:05]}  Rfd8 {[%clk 0:01:48]} 18. Be4 {[%clk 0:02:00]}  Bxe5 {[%clk 0:01:17]} 19. dxe5 {[%clk 0:01:59]}  Qe7 {[%clk 0:01:04]} 20. Qh5 {[%clk 0:01:59]}  h6 {[%clk 0:01:01]} 21. Qf3 {[%clk 0:01:50]}  Ba6 {[%clk 0:00:33]} 22. b3 {[%clk 0:01:48]}  c5 {[%clk 0:00:33]} 23. h4 {[%clk 0:01:46]}  Rd4 {[%clk 0:00:32]} 24. Rxd4 {[%clk 0:01:19]}  cxd4 {[%clk 0:00:33]} 25. Bc2 {[%clk 0:01:18]}  b5 {[%clk 0:00:30]} 26. Qe4 {[%clk 0:01:14]}  g6 {[%clk 0:00:30]} 27. cxb5 {[%clk 0:01:07]}  Bxb5 {[%clk 0:00:30]} 28. h5 {[%clk 0:01:07]}  Bc6 {[%clk 0:00:29]} 29. Qxd4 {[%clk 0:00:59]}  Bf3 {[%clk 0:00:23]} 30. hxg6 {[%clk 0:00:34]}  Rxc2 {[%clk 0:00:20]} 31. Qd3 {[%clk 0:00:34]}  Qc7 {[%clk 0:00:08]} 32. Qxf3 {[%clk 0:00:34]}  fxg6 {[%clk 0:00:07]} 33. Rd1 {[%clk 0:00:32]}  Rc1 {[%clk 0:00:07]} 34. Rxc1 {[%clk 0:00:26]}  Qxc1+ {[%clk 0:00:08]} 35. Kg2 {[%clk 0:00:26]}  Qc5 {[%clk 0:00:08]} 36. Qa8+ {[%clk 0:00:26]}  Kg7 {[%clk 0:00:07]} 37. Qb7+ {[%clk 0:00:26]}  Kg8 {[%clk 0:00:08]} 38. Qb8+ {[%clk 0:00:24]}  Kg7 {[%clk 0:00:08]} 39. b4 {[%clk 0:00:17]}  Qd5+ {[%clk 0:00:07]} 40. Kh2 {[%clk 0:00:16]}  Qd7 {[%clk 0:00:08]} 41. Qa8 {[%clk 0:00:13]}  Kf7 {[%clk 0:00:08]} 42. Qf3+ {[%clk 0:00:13]}  Kg7 {[%clk 0:00:08]} 43. Qf6+ {[%clk 0:00:13]}  Kh7 {[%clk 0:00:08]} 44. a3 {[%clk 0:00:14]}  Qc8 {[%clk 0:00:03]} 45. Qf7+ {[%clk 0:00:13]}  Kh8 {[%clk 0:00:03]} 46. Qxa7 {[%clk 0:00:12]}  Qc2 {[%clk 0:00:03]} 47. Qa8+ {[%clk 0:00:11]}  Kg7 {[%clk 0:00:03]} 48. Qf3 {[%clk 0:00:12]}  g5 {[%clk 0:00:03]} 49. Qf6+ {[%clk 0:00:12]}  Kg8 {[%clk 0:00:03]} 50. b5 {[%clk 0:00:12]}  Qxf2+ {[%clk 0:00:02]} 51. Qxf2 {[%clk 0:00:11]} 1-0


[Site "https://www.chess.com"]

[Event "Titled Tuesday Blitz February 07 Late 2023"]
[White "Slavin, Alexey"]
[Black "Antonova, Nadezhda"]
[WhiteFideId "24104388"]
[BlackFideId "14700182"]
[WhiteElo "2364"]
[BlackElo "1945"]
[Result "1-0"]
[Round "10"]
[TimeControl "180+2"]
[Date "2023.02.07"]
[WhiteClock "0:00:34"]
[BlackClock "0:00:02"]

1. e4 {[%clk 0:03:00]}  c5 {[%clk 0:02:59]} 2. g3 {[%clk 0:03:00]}  g6 {[%clk 0:02:57]} 3. Bg2 {[%clk 0:03:00]}  Bg7 {[%clk 0:02:57]} 4. Ne2 {[%clk 0:02:59]}  d6 {[%clk 0:02:56]} 5. O-O {[%clk 0:02:59]}  Nc6 {[%clk 0:02:53]} 6. Nbc3 {[%clk 0:02:49]}  e6 {[%clk 0:02:47]} 7. a3 {[%clk 0:02:49]}  Nge7 {[%clk 0:02:45]} 8. Rb1 {[%clk 0:02:49]}  a6 {[%clk 0:02:34]} 9. b4 {[%clk 0:02:49]}  cxb4 {[%clk 0:02:33]} 10. axb4 {[%clk 0:02:49]}  b5 {[%clk 0:02:33]} 11. d4 {[%clk 0:02:47]}  d5 {[%clk 0:02:24]} 12. exd5 {[%clk 0:02:43]}  Nxd5 {[%clk 0:02:22]} 13. Nxd5 {[%clk 0:02:43]}  exd5 {[%clk 0:02:23]} 14. c3 {[%clk 0:02:43]}  O-O {[%clk 0:02:22]} 15. Nf4 {[%clk 0:02:43]}  Ne7 {[%clk 0:02:16]} 16. Qb3 {[%clk 0:02:40]}  Bb7 {[%clk 0:02:13]} 17. Re1 {[%clk 0:02:39]}  Rc8 {[%clk 0:02:11]} 18. Bd2 {[%clk 0:02:38]}  Re8 {[%clk 0:02:09]} 19. Nd3 {[%clk 0:02:38]}  Nf5 {[%clk 0:01:37]} 20. Nc5 {[%clk 0:02:34]}  Bc6 {[%clk 0:01:08]} 21. Nxa6 {[%clk 0:02:20]}  Nd6 {[%clk 0:00:58]} 22. Bxd5 {[%clk 0:02:14]}  Nc4 {[%clk 0:00:56]} 23. Bxc4 {[%clk 0:02:07]}  bxc4 {[%clk 0:00:55]} 24. Qxc4 {[%clk 0:01:55]}  Be4 {[%clk 0:00:52]} 25. Qf1 {[%clk 0:01:43]}  Bxb1 {[%clk 0:00:35]} 26. Rxb1 {[%clk 0:01:41]}  Qf6 {[%clk 0:00:26]} 27. Nc5 {[%clk 0:01:37]}  Qf3 {[%clk 0:00:24]} 28. Re1 {[%clk 0:01:31]}  h5 {[%clk 0:00:15]} 29. Be3 {[%clk 0:01:25]}  Qf5 {[%clk 0:00:08]} 30. h4 {[%clk 0:01:20]}  Qc2 {[%clk 0:00:08]} 31. Rc1 {[%clk 0:01:17]}  Qb2 {[%clk 0:00:07]} 32. Qd1 {[%clk 0:01:09]}  Ra8 {[%clk 0:00:05]} 33. Qc2 {[%clk 0:01:05]}  Ra2 {[%clk 0:00:04]} 34. Qxb2 {[%clk 0:01:03]}  Rxb2 {[%clk 0:00:05]} 35. Kf1 {[%clk 0:00:48]}  Kh7 {[%clk 0:00:05]} 36. Nd3 {[%clk 0:00:45]}  Ra2 {[%clk 0:00:04]} 37. Nf4 {[%clk 0:00:45]}  Bh6 {[%clk 0:00:04]} 38. b5 {[%clk 0:00:45]}  Rb2 {[%clk 0:00:03]} 39. c4 {[%clk 0:00:44]}  Rb8 {[%clk 0:00:02]} 40. d5 {[%clk 0:00:36]}  Kg7 {[%clk 0:00:02]} 41. d6 {[%clk 0:00:36]}  Rd8 {[%clk 0:00:02]} 42. Bd4+ {[%clk 0:00:34]} 1-0


[Site "https://www.chess.com"]

[Event "Titled Tuesday Blitz February 07 Late 2023"]
[White "Alexikov, Alexander"]
[Black "Marcolino, Daniel Mattos"]
[WhiteFideId "14103958"]
[BlackFideId "2106841"]
[WhiteElo "2209"]
[BlackElo "2006"]
[Result "1-0"]
[Round "10"]
[TimeControl "180+2"]
[Date "2023.02.07"]
[WhiteClock "0:00:39"]
[BlackClock "0:00:21"]

1. e4 {[%clk 0:03:00]}  c6 {[%clk 0:02:59]} 2. d4 {[%clk 0:02:59]}  d5 {[%clk 0:03:00]} 3. e5 {[%clk 0:02:58]}  c5 {[%clk 0:03:00]} 4. f4 {[%clk 0:02:57]}  Nc6 {[%clk 0:02:58]} 5. c3 {[%clk 0:02:55]}  cxd4 {[%clk 0:02:56]} 6. cxd4 {[%clk 0:02:53]}  Bf5 {[%clk 0:02:56]} 7. Nc3 {[%clk 0:02:52]}  e6 {[%clk 0:02:56]} 8. Be3 {[%clk 0:02:46]}  Nge7 {[%clk 0:02:56]} 9. Rc1 {[%clk 0:02:38]}  h5 {[%clk 0:02:50]} 10. a3 {[%clk 0:02:35]}  a6 {[%clk 0:02:47]} 11. b4 {[%clk 0:02:33]}  Bg4 {[%clk 0:02:42]} 12. Qb3 {[%clk 0:02:30]}  Nf5 {[%clk 0:02:40]} 13. Nce2 {[%clk 0:02:11]}  Nxe3 {[%clk 0:02:03]} 14. Qxe3 {[%clk 0:02:10]}  Be7 {[%clk 0:01:57]} 15. h3 {[%clk 0:02:06]}  Bf5 {[%clk 0:01:56]} 16. Nf3 {[%clk 0:02:04]}  Rc8 {[%clk 0:01:51]} 17. Kd1 {[%clk 0:01:59]}  Na7 {[%clk 0:01:50]} 18. g3 {[%clk 0:01:51]}  Qd7 {[%clk 0:01:37]} 19. Qb3 {[%clk 0:01:40]}  Rxc1+ {[%clk 0:01:34]} 20. Nxc1 {[%clk 0:01:38]}  Nc8 {[%clk 0:01:35]} 21. Nd3 {[%clk 0:01:36]}  Bxd3 {[%clk 0:01:30]} 22. Bxd3 {[%clk 0:01:35]}  b5 {[%clk 0:01:27]} 23. Ke2 {[%clk 0:01:21]}  Nb6 {[%clk 0:01:27]} 24. Rc1 {[%clk 0:01:18]}  Nc4 {[%clk 0:01:27]} 25. a4 {[%clk 0:01:17]}  O-O {[%clk 0:01:26]} 26. axb5 {[%clk 0:01:16]}  axb5 {[%clk 0:01:27]} 27. Ra1 {[%clk 0:01:15]}  f6 {[%clk 0:01:10]} 28. Bc2 {[%clk 0:01:11]}  fxe5 {[%clk 0:01:08]} 29. dxe5 {[%clk 0:01:08]}  h4 {[%clk 0:01:04]} 30. Qd3 {[%clk 0:01:05]}  Rf5 {[%clk 0:00:38]} 31. Ra8+ {[%clk 0:01:02]}  Bd8 {[%clk 0:00:33]} 32. g4 {[%clk 0:00:57]}  Rxf4 {[%clk 0:00:33]} 33. Qh7+ {[%clk 0:00:51]}  Kf8 {[%clk 0:00:28]} 34. Qh8+ {[%clk 0:00:49]}  Ke7 {[%clk 0:00:28]} 35. Qxh4+ {[%clk 0:00:43]}  Ke8 {[%clk 0:00:21]} 36. Bg6+ {[%clk 0:00:39]} 1-0


[Site "https://www.chess.com"]

[Event "Titled Tuesday Blitz February 07 Late 2023"]
[White "Rose, Felix"]
[Black "Zampronha, Wladimir Camilo"]
[WhiteFideId "5105722"]
[BlackFideId "2103087"]
[WhiteElo "2091"]
[BlackElo "2176"]
[Result "1-0"]
[Round "10"]
[TimeControl "180+2"]
[Date "2023.02.07"]
[WhiteClock "0:00:12"]
[BlackClock "0:00:06"]

1. e4 {[%clk 0:02:30]}  c5 {[%clk 0:02:57]} 2. Nf3 {[%clk 0:02:30]}  e6 {[%clk 0:02:58]} 3. d4 {[%clk 0:02:30]}  cxd4 {[%clk 0:02:58]} 4. Nxd4 {[%clk 0:02:31]}  Nc6 {[%clk 0:02:59]} 5. Nc3 {[%clk 0:02:31]}  Qc7 {[%clk 0:02:59]} 6. Be3 {[%clk 0:02:31]}  a6 {[%clk 0:02:59]} 7. Qf3 {[%clk 0:02:31]}  Nf6 {[%clk 0:02:54]} 8. O-O-O {[%clk 0:02:31]}  Be7 {[%clk 0:02:27]} 9. Be2 {[%clk 0:02:20]}  b5 {[%clk 0:02:27]} 10. e5 {[%clk 0:01:56]}  Ng8 {[%clk 0:01:52]} 11. Nxc6 {[%clk 0:01:44]}  Qxc6 {[%clk 0:01:43]} 12. Qg3 {[%clk 0:01:44]}  g6 {[%clk 0:01:43]} 13. Bf3 {[%clk 0:01:43]}  Qc4 {[%clk 0:01:37]} 14. Bxa8 {[%clk 0:01:39]}  b4 {[%clk 0:01:38]} 15. Ne4 {[%clk 0:01:31]}  Qxa2 {[%clk 0:01:37]} 16. Bg5 {[%clk 0:01:20]}  Qa1+ {[%clk 0:01:35]} 17. Kd2 {[%clk 0:01:20]}  Qxb2 {[%clk 0:01:36]} 18. Bxe7 {[%clk 0:01:17]}  Nxe7 {[%clk 0:01:36]} 19. Nd6+ {[%clk 0:01:05]}  Kf8 {[%clk 0:01:36]} 20. Qf4 {[%clk 0:00:30]}  Nf5 {[%clk 0:01:23]} 21. Nxc8 {[%clk 0:00:28]}  Qc3+ {[%clk 0:01:19]} 22. Ke2 {[%clk 0:00:27]}  Qxc8 {[%clk 0:01:20]} 23. Be4 {[%clk 0:00:26]}  Qc4+ {[%clk 0:01:16]} 24. Ke1 {[%clk 0:00:23]}  Nd4 {[%clk 0:01:03]} 25. Qd2 {[%clk 0:00:19]}  Nb5 {[%clk 0:00:53]} 26. Bd3 {[%clk 0:00:19]}  Qc5 {[%clk 0:00:51]} 27. Bxb5 {[%clk 0:00:19]}  Qxb5 {[%clk 0:00:52]} 28. Qd6+ {[%clk 0:00:18]}  Kg7 {[%clk 0:00:51]} 29. Qxd7 {[%clk 0:00:18]}  Qxe5+ {[%clk 0:00:50]} 30. Kf1 {[%clk 0:00:18]}  Qf5 {[%clk 0:00:39]} 31. Qd4+ {[%clk 0:00:17]}  Kh6 {[%clk 0:00:39]} 32. Qd2+ {[%clk 0:00:17]}  Kg7 {[%clk 0:00:39]} 33. h4 {[%clk 0:00:17]}  Rc8 {[%clk 0:00:36]} 34. Qd3 {[%clk 0:00:16]}  Qg4 {[%clk 0:00:22]} 35. Qd4+ {[%clk 0:00:14]}  Qxd4 {[%clk 0:00:22]} 36. Rxd4 {[%clk 0:00:14]}  Rxc2 {[%clk 0:00:23]} 37. Rh3 {[%clk 0:00:13]}  Rb2 {[%clk 0:00:20]} 38. Rf3 {[%clk 0:00:12]}  a5 {[%clk 0:00:18]} 39. Rd7 {[%clk 0:00:12]}  a4 {[%clk 0:00:17]} 40. Rfxf7+ {[%clk 0:00:12]}  Kg8 {[%clk 0:00:18]} 41. Rg7+ {[%clk 0:00:11]}  Kf8 {[%clk 0:00:18]} 42. Rxh7 {[%clk 0:00:12]}  Kg8 {[%clk 0:00:18]} 43. Ra7 {[%clk 0:00:11]}  a3 {[%clk 0:00:17]} 44. Rhb7 {[%clk 0:00:11]}  Rc2 {[%clk 0:00:06]} 45. Ra8+ {[%clk 0:00:11]}  Rc8 {[%clk 0:00:06]} 46. Rxc8# {[%clk 0:00:12]} 1-0


[Site "https://www.chess.com"]

[Event "Titled Tuesday Blitz February 07 Late 2023"]
[White "Tarnowska, Aleksandra"]
[Black "rikchessmx"]
[WhiteFideId "1180967"]
[WhiteElo "1835"]
[BlackElo "2230"]
[Result "1-0"]
[Round "10"]
[TimeControl "180+2"]
[Date "2023.02.07"]
[WhiteClock "0:00:28"]
[BlackClock "0:01:53"]

1. e4 {[%clk 0:03:00]}  d5 {[%clk 0:03:00]} 2. exd5 {[%clk 0:03:01]}  Qxd5 {[%clk 0:03:00]} 3. Nc3 {[%clk 0:03:01]}  Qa5 {[%clk 0:02:59]} 4. Nf3 {[%clk 0:03:02]}  Nf6 {[%clk 0:03:00]} 5. d4 {[%clk 0:03:01]}  Nc6 {[%clk 0:03:00]} 6. Be3 {[%clk 0:03:00]}  Bg4 {[%clk 0:03:00]} 7. h3 {[%clk 0:02:56]}  Bh5 {[%clk 0:02:59]} 8. g4 {[%clk 0:02:57]}  Bg6 {[%clk 0:02:59]} 9. Bg2 {[%clk 0:02:57]}  e6 {[%clk 0:02:59]} 10. O-O {[%clk 0:02:56]}  h5 {[%clk 0:02:58]} 11. g5 {[%clk 0:02:56]}  Nh7 {[%clk 0:02:57]} 12. Qd2 {[%clk 0:02:48]}  O-O-O {[%clk 0:02:48]} 13. a3 {[%clk 0:02:26]}  f6 {[%clk 0:02:48]} 14. b4 {[%clk 0:02:25]}  Qf5 {[%clk 0:02:48]} 15. Rac1 {[%clk 0:02:15]}  h4 {[%clk 0:02:47]} 16. Nxh4 {[%clk 0:02:02]}  Nxg5 {[%clk 0:02:42]} 17. Nxf5 {[%clk 0:02:01]}  Bxf5 {[%clk 0:02:43]} 18. Bxg5 {[%clk 0:01:46]}  fxg5 {[%clk 0:02:42]} 19. d5 {[%clk 0:01:37]}  Be7 {[%clk 0:02:38]} 20. Qe3 {[%clk 0:01:29]}  Nb8 {[%clk 0:02:36]} 21. Nb5 {[%clk 0:01:18]}  c6 {[%clk 0:02:14]} 22. Nxa7+ {[%clk 0:01:17]}  Kc7 {[%clk 0:02:14]} 23. dxc6 {[%clk 0:01:00]}  bxc6 {[%clk 0:02:12]} 24. Qe5+ {[%clk 0:01:01]}  Bd6 {[%clk 0:02:09]} 25. Qa5+ {[%clk 0:00:59]}  Kd7 {[%clk 0:02:05]} 26. Rcd1 {[%clk 0:00:47]}  Ke7 {[%clk 0:02:01]} 27. Rfe1 {[%clk 0:00:35]}  g4 {[%clk 0:01:58]} 28. Qxf5 {[%clk 0:00:33]}  gxh3 {[%clk 0:01:54]} 29. Qg5+ {[%clk 0:00:31]}  Kf7 {[%clk 0:01:54]} 30. Bxh3 {[%clk 0:00:30]}  Be7 {[%clk 0:01:52]} 31. Qf4+ {[%clk 0:00:30]}  Bf6 {[%clk 0:01:52]} 32. Rxd8 {[%clk 0:00:29]}  Rxd8 {[%clk 0:01:53]} 33. Bxe6+ {[%clk 0:00:28]} 1-0


[Site "https://www.chess.com"]

[Event "Titled Tuesday Blitz February 07 Late 2023"]
[White "Floresvillar Gonzalez, Luis Migu"]
[Black "Castillo Pena, Patricia Evarista"]
[WhiteFideId "5100542"]
[BlackFideId "6412106"]
[WhiteElo "2043"]
[BlackElo "1783"]
[Result "1-0"]
[Round "10"]
[TimeControl "180+2"]
[Date "2023.02.07"]
[WhiteClock "0:01:44"]
[BlackClock "0:00:09"]

1. d4 {[%clk 0:02:59]}  d5 {[%clk 0:02:58]} 2. c3 {[%clk 0:02:58]}  Nf6 {[%clk 0:02:57]} 3. Bg5 {[%clk 0:02:57]}  e6 {[%clk 0:02:57]} 4. Nd2 {[%clk 0:02:57]}  c5 {[%clk 0:02:57]} 5. e3 {[%clk 0:02:57]}  Nc6 {[%clk 0:02:57]} 6. Bd3 {[%clk 0:02:57]}  Be7 {[%clk 0:02:54]} 7. f4 {[%clk 0:02:57]}  O-O {[%clk 0:02:52]} 8. Ngf3 {[%clk 0:02:57]}  h6 {[%clk 0:02:51]} 9. Bxf6 {[%clk 0:02:56]}  Bxf6 {[%clk 0:02:51]} 10. O-O {[%clk 0:02:54]}  b6 {[%clk 0:02:51]} 11. Qe2 {[%clk 0:02:53]}  Bb7 {[%clk 0:02:45]} 12. Ne5 {[%clk 0:02:53]}  Rc8 {[%clk 0:02:32]} 13. Rf3 {[%clk 0:02:51]}  Nxe5 {[%clk 0:02:12]} 14. fxe5 {[%clk 0:02:50]}  Bg5 {[%clk 0:02:11]} 15. Raf1 {[%clk 0:02:49]}  cxd4 {[%clk 0:02:06]} 16. exd4 {[%clk 0:02:49]}  Qc7 {[%clk 0:01:49]} 17. Rg3 {[%clk 0:02:36]}  Bxd2 {[%clk 0:01:20]} 18. Qxd2 {[%clk 0:02:33]}  Kh8 {[%clk 0:01:16]} 19. Bb1 {[%clk 0:02:30]}  Ba6 {[%clk 0:01:06]} 20. Qc2 {[%clk 0:02:28]}  g6 {[%clk 0:00:23]} 21. Rf6 {[%clk 0:02:16]}  Qc4 {[%clk 0:00:11]} 22. h4 {[%clk 0:02:07]}  Qe2 {[%clk 0:00:11]} 23. Qc1 {[%clk 0:01:53]}  Kg7 {[%clk 0:00:09]} 24. Bxg6 {[%clk 0:01:46]}  fxg6 {[%clk 0:00:09]} 25. Rfxg6+ {[%clk 0:01:44]} 1-0


[Site "https://www.chess.com"]

[Event "Titled Tuesday Blitz February 07 Late 2023"]
[White "Winkels, Marcel"]
[Black "Desideri, Ricardo Maruchi"]
[WhiteFideId "1003887"]
[BlackFideId "2110440"]
[WhiteElo "1960"]
[BlackElo "1959"]
[Result "1-0"]
[Round "10"]
[TimeControl "180+2"]
[Date "2023.02.07"]
[WhiteClock "0:00:50"]
[BlackClock "0:00:01"]

1. c4 {[%clk 0:03:00]}  e5 {[%clk 0:02:58]} 2. g3 {[%clk 0:03:01]}  Nf6 {[%clk 0:02:56]} 3. Bg2 {[%clk 0:03:01]}  d5 {[%clk 0:02:57]} 4. cxd5 {[%clk 0:03:01]}  Nxd5 {[%clk 0:02:57]} 5. Nc3 {[%clk 0:03:01]}  Be6 {[%clk 0:02:57]} 6. d4 {[%clk 0:02:54]}  Nxc3 {[%clk 0:02:40]} 7. bxc3 {[%clk 0:02:52]}  c6 {[%clk 0:02:30]} 8. Rb1 {[%clk 0:02:50]}  Qc7 {[%clk 0:02:17]} 9. dxe5 {[%clk 0:02:42]}  Qxe5 {[%clk 0:02:13]} 10. Rxb7 {[%clk 0:02:41]}  Qxc3+ {[%clk 0:02:08]} 11. Bd2 {[%clk 0:02:40]}  Qf6 {[%clk 0:01:47]} 12. Nf3 {[%clk 0:02:36]}  Bc5 {[%clk 0:01:47]} 13. Bg5 {[%clk 0:02:30]}  Qc3+ {[%clk 0:01:34]} 14. Bd2 {[%clk 0:02:28]}  Qf6 {[%clk 0:01:29]} 15. Qc2 {[%clk 0:02:11]}  Bb6 {[%clk 0:01:19]} 16. O-O {[%clk 0:02:03]}  O-O {[%clk 0:01:17]} 17. Bb4 {[%clk 0:01:57]}  Re8 {[%clk 0:01:12]} 18. Bc3 {[%clk 0:01:52]}  Qg6 {[%clk 0:00:50]} 19. Qb2 {[%clk 0:01:40]}  Bd5 {[%clk 0:00:44]} 20. Ne5 {[%clk 0:01:34]}  Qf5 {[%clk 0:00:12]} 21. Bxd5 {[%clk 0:01:30]}  cxd5 {[%clk 0:00:12]} 22. Rxf7 {[%clk 0:01:29]}  Qe6 {[%clk 0:00:04]} 23. Kg2 {[%clk 0:01:16]}  d4 {[%clk 0:00:03]} 24. f4 {[%clk 0:00:51]}  dxc3 {[%clk 0:00:01]} 25. Qxc3 {[%clk 0:00:52]}  Qd5+ {[%clk 0:00:01]} 26. Kh3 {[%clk 0:00:50]} 1-0


[Site "https://www.chess.com"]

[Event "Titled Tuesday Blitz February 07 Late 2023"]
[White "Vargas, Mauricio"]
[Black "Michalski, Olaf"]
[WhiteFideId "4404572"]
[BlackFideId "1106740"]
[WhiteElo "2035"]
[BlackElo "2273"]
[Result "0-1"]
[Round "10"]
[TimeControl "180+2"]
[Date "2023.02.07"]
[WhiteClock "0:00:02"]
[BlackClock "0:00:01"]

1. e4 {[%clk 0:03:00]}  c5 {[%clk 0:02:57]} 2. Nc3 {[%clk 0:02:59]}  a6 {[%clk 0:02:55]} 3. f4 {[%clk 0:02:59]}  b5 {[%clk 0:02:53]} 4. Nf3 {[%clk 0:03:00]}  Bb7 {[%clk 0:02:54]} 5. d3 {[%clk 0:02:59]}  e6 {[%clk 0:02:54]} 6. e5 {[%clk 0:02:57]}  d5 {[%clk 0:02:35]} 7. exd6 {[%clk 0:02:54]}  Bxd6 {[%clk 0:02:34]} 8. Ne4 {[%clk 0:02:55]}  Be7 {[%clk 0:02:28]} 9. Qe2 {[%clk 0:02:53]}  Nf6 {[%clk 0:02:25]} 10. Neg5 {[%clk 0:02:40]}  O-O {[%clk 0:02:11]} 11. g3 {[%clk 0:02:31]}  Nc6 {[%clk 0:01:24]} 12. Bg2 {[%clk 0:02:30]}  Qc7 {[%clk 0:01:16]} 13. O-O {[%clk 0:02:18]}  Nd4 {[%clk 0:01:04]} 14. Nxd4 {[%clk 0:02:08]}  Bxg2 {[%clk 0:01:04]} 15. Qxg2 {[%clk 0:01:50]}  cxd4 {[%clk 0:01:03]} 16. Rf2 {[%clk 0:01:36]}  Rac8 {[%clk 0:00:49]} 17. Nf3 {[%clk 0:01:34]}  Nd5 {[%clk 0:00:39]} 18. Nxd4 {[%clk 0:01:13]}  Bc5 {[%clk 0:00:30]} 19. c3 {[%clk 0:01:12]}  Qb6 {[%clk 0:00:15]} 20. Bd2 {[%clk 0:01:09]}  Bxd4 {[%clk 0:00:14]} 21. cxd4 {[%clk 0:01:08]}  Qxd4 {[%clk 0:00:14]} 22. Qe4 {[%clk 0:00:40]}  Qxb2 {[%clk 0:00:14]} 23. Raf1 {[%clk 0:00:16]}  Rc2 {[%clk 0:00:13]} 24. Bc1 {[%clk 0:00:08]}  Qxa2 {[%clk 0:00:05]} 25. f5 {[%clk 0:00:07]}  Nf6 {[%clk 0:00:04]} 26. Qb4 {[%clk 0:00:04]}  Rxf2 {[%clk 0:00:03]} 27. Rxf2 {[%clk 0:00:04]}  Qd5 {[%clk 0:00:01]} 28. fxe6 {[%clk 0:00:02]}  Qxe6 {[%clk 0:00:01]} 0-1


[Site "https://www.chess.com"]